bitfinex/quotes_ETHUSD_20250219
["timestamp","ask_amount","ask_price","bid_price","bid_amount"]
[1739936297821,0.81542331,2693.3,2693.2,0.07982306]
[1739936297977,1.98194124,2693.3,2692.7,0.26086772]
[1739936298183,0.81542331,2693.3,2692.8,0.26086772]
[1739936298416,0.81542331,2693.3,2692.8,0.34101804]
[1739936298790,0.7874,2693.3,2692.8,0.34101804]
[1739936299318,0.7874,2693.3,2692.9,0.26086772]
[1739936299517,0.7874,2693.3,2692.9,0.34055925]
[1739936299683,1.9511156,2693.3,2692.9,0.34055925]
[1739936300685,0.02802331,2693.2,2693.0,0.26086772]
[1739936300885,0.02802331,2693.2,2693.0,0.34047743]
[1739936301929,0.02802331,2693.2,2693.0,0.07960971]
[1739936302132,0.02802331,2693.2,2692.7,0.26086772]
[1739936302295,0.02802331,2693.2,2693.1,0.0795279]
[1739936302618,3.7729128,2693.2,2692.7,0.26086772]
[1739936302794,3.7729128,2693.2,2693.1,0.0795279]
[1739936302995,6.24266876,2693.2,2692.7,0.26086772]
[1739936303395,6.24266876,2693.2,2692.8,0.34064107]
[1739936303831,2.46975596,2692.9,2692.8,0.34064107]
[1739936304005,3.46873156,2692.9,2692.8,0.34064107]
[1739936304192,6.49675487,2692.9,2692.8,0.26086772]
[1739936304396,6.46873156,2692.9,2692.8,0.26086772]
[1739936304696,3.0,2692.8,2692.2,0.26086772]
[1739936304897,8.38,2692.8,2692.2,0.26086772]
[1739936305412,8.38,2692.8,2692.3,0.7669]
[1739936305816,8.38,2692.8,2692.3,1.57520319]
[1739936306128,5.38,2692.8,2692.4,0.8007]
[1739936307319,5.38,2692.8,2692.5,0.26086772]
[1739936307833,5.38,2692.8,2692.6,0.8007]
[1739936308832,5.38,2692.8,2692.7,0.26086772]
[1739936309001,5.38,2692.8,2692.7,0.34058527]
[1739936310133,0.02802331,2693.0,2692.7,0.34058527]
[1739936310637,0.65450124,2693.0,2692.7,0.34058527]
[1739936310836,0.7661,2692.8,2692.7,0.34058527]
[1739936311016,0.79412331,2692.8,2692.7,0.34058527]
[1739936311439,0.79412331,2692.8,2692.7,0.07971755]
[1739936311941,0.79412331,2692.8,2692.7,0.07963378]
[1739936312106,9.17412331,2692.8,2692.1,0.7734]
[1739936312307,1.16438793,2692.7,2692.1,0.7734]
[1739936312507,0.02802331,2692.6,2692.1,0.7734]
[1739936312926,5.49777927,2692.6,2692.2,0.26067461]
[1739936313330,0.7661,2692.5,2692.2,0.26067461]
[1739936313853,0.02802331,2692.4,2692.2,0.26067461]
[1739936314423,0.02802331,2692.4,2692.0,0.26067461]
[1739936314622,0.79412331,2692.5,2692.0,0.26067461]
[1739936315505,0.79412331,2692.5,2692.1,0.26067461]
[1739936316930,0.79412331,2692.5,2692.2,0.26067461]
[1739936317724,5.46975596,2692.6,2692.2,0.26067461]
[1739936317930,3.0,2692.6,2692.3,0.7734]
[1739936318132,3.0,2692.6,2692.3,0.85363641]
[1739936319438,5.38,2692.8,2692.3,0.85363641]
[1739936319439,5.38,2692.8,2692.3,1.31045305]
[1739936319752,3.02802331,2692.7,2692.3,1.31045305]
[1739936319964,3.0,2692.7,2692.3,0.85363641]
[1739936320145,3.0,2692.7,2692.4,0.26066425]
[1739936320344,3.02802331,2692.7,2692.4,0.34081881]
[1739936321154,3.0,2692.7,2692.4,0.34081881]
[1739936321354,3.02802331,2692.7,2692.4,0.34081881]
[1739936321534,3.0,2692.7,2692.4,0.34081881]
[1739936321921,2.46975596,2692.9,2692.5,0.26066425]
[1739936322117,2.46975596,2692.9,2692.5,0.34073696]
[1739936322322,2.49777927,2692.9,2692.5,0.34073696]
[1739936322542,2.46975596,2692.9,2692.5,0.34073696]
[1739936322755,2.46975596,2692.9,2692.5,0.08007271]
[1739936324148,2.46975596,2692.9,2692.6,0.26066425]
[1739936324459,2.46975596,2692.9,2692.6,0.34079272]
[1739936325155,5.46975596,2693.2,2692.7,0.8102]
[1739936325363,2.46975596,2693.2,2692.5,3.714]
[1739936325538,2.46975596,2693.2,2692.4,4.44398688]
[1739936325724,2.46975596,2693.2,2692.6,0.07433102]
[1739936325925,2.46975596,2693.2,2692.4,4.44398688]
[1739936326126,2.46975596,2693.2,2692.7,0.07424918]
[1739936326423,2.46975596,2693.2,2692.5,0.26057706]
[1739936326652,3.0,2693.3,2692.8,0.07416735]
[1739936326854,3.0,2693.3,2692.5,3.97458706]
[1739936327156,3.0,2693.3,2692.6,3.71385]
[1739936327363,3.0,2693.3,2692.6,3.78818102]
[1739936327565,3.0,2693.3,2692.6,4.04875808]
[1739936328338,3.0,2693.3,2692.7,0.7707]
[1739936328549,3.0,2693.3,2692.7,0.84494918]
[1739936328866,3.0,2693.3,2692.7,1.10552624]
[1739936329942,3.02802331,2693.3,2692.8,0.26057706]
[1739936330266,3.02802331,2693.3,2692.8,0.33474441]
[1739936331268,3.02802331,2693.3,2692.9,0.26057706]
[1739936331451,4.11580124,2693.3,2692.9,0.26057706]
[1739936331662,4.11580124,2693.3,2693.0,0.07400371]
[1739936333431,4.11580124,2693.3,2692.7,0.7707]
[1739936333631,4.11580124,2693.3,2693.1,0.0739219]
[1739936333867,4.93400124,2693.3,2692.7,0.7707]
[1739936334049,4.93400124,2693.3,2693.2,0.07384009]
[1739936334256,4.93400124,2693.3,2692.7,0.7707]
[1739936334564,3.84622331,2693.3,2692.8,0.33471071]
[1739936335536,3.0,2693.3,2692.9,0.8296]
[1739936335731,3.0,2693.3,2692.9,0.90344624]
[1739936335956,3.0,2693.3,2692.9,1.1639896]
[1739936336857,3.02802331,2693.3,2692.9,1.1639896]
[1739936337460,3.02802331,2693.3,2692.9,0.90344624]
[1739936338337,4.11580124,2693.3,2692.9,0.90344624]
[1739936338659,0.7716,2693.2,2693.0,0.26045966]
[1739936338856,0.02802331,2693.1,2693.0,0.26045966]
[1739936339033,0.7716,2693.2,2693.0,0.26045966]
[1739936339232,0.02802331,2693.1,2693.0,0.26045966]
[1739936339463,0.7716,2693.2,2693.0,0.26045966]
[1739936339766,0.02802331,2693.1,2693.0,0.26045966]
[1739936340350,0.02802331,2693.1,2692.8,0.26045966]
[1739936341976,3.02802331,2693.3,2692.9,0.26045966]
[1739936342575,4.19344124,2693.3,2692.9,0.26045966]
[1739936343876,4.19344124,2693.3,2692.7,0.8012]
[1739936344580,4.16541793,2693.3,2692.7,0.8012]
[1739936344765,3.0,2693.3,2692.7,0.8012]
[1739936344968,3.0,2693.3,2692.8,0.26057454]
[1739936345146,3.02802331,2693.3,2692.8,0.26057454]
[1739936346147,3.02802331,2693.3,2692.9,0.26057454]
[1739936347682,3.02802331,2693.3,2692.7,0.8012]
[1739936348543,1.23557503,2693.1,2692.7,0.8012]
[1739936349285,1.23557503,2693.1,2692.8,0.26029491]
[1739936349774,1.26359834,2693.1,2692.8,0.26029491]
[1739936349996,1.23557503,2693.1,2692.8,0.26029491]
[1739936350682,1.23557503,2693.1,2692.9,0.26029491]
[1739936351387,1.26359834,2693.1,2692.9,0.26029491]
[1739936351583,0.7716,2693.0,2692.9,0.26029491]
[1739936352285,0.7716,2693.0,2692.2,0.8021]
[1739936352584,1.23557503,2692.8,2692.3,0.07150297]
[1739936352777,1.23557503,2692.8,2692.3,0.72993624]
[1739936352976,1.23557503,2692.8,2692.4,0.07142112]
[1739936353587,1.23557503,2692.8,2692.5,0.26054505]
[1739936353788,1.23557503,2692.8,2692.5,0.33202766]
[1739936354968,1.23557503,2692.8,2692.6,0.26054505]
[1739936355283,1.23557503,2692.8,2692.6,0.3319279]
[1739936356294,1.23557503,2692.8,2692.7,0.26054505]
[1739936356782,1.23557503,2692.8,2692.7,0.33184606]
[1739936361272,2.30231584,2692.8,2692.7,0.33184606]
[1739936361798,2.30231584,2692.8,2692.7,0.26054505]
[1739936362173,6.07771584,2692.8,2692.7,0.26054505]
[1739936363099,6.07771584,2692.8,2692.2,0.7944]
[1739936363100,3.0,2692.7,2692.2,0.7944]
[1739936363299,1.23557503,2692.5,2692.2,0.7944]
[1739936363500,0.85162331,2692.4,2692.3,0.07164034]
[1739936364205,0.85162331,2692.4,2692.3,0.26046969]
[1739936364367,0.02802331,2692.4,2692.3,0.33237882]
[1739936364568,0.777,2692.6,2692.3,0.33237882]
[1739936364792,1.23557503,2692.4,2692.3,0.33237882]
[1739936367879,0.777,2692.8,2692.3,1.16447882]
[1739936368084,1.23557503,2692.6,2692.3,1.16447882]
[1739936368499,1.23557503,2692.6,2692.4,0.26046969]
[1739936368806,1.23557503,2692.6,2692.5,0.07193061]
[1739936369813,1.23557503,2692.6,2692.5,0.3324003]
[1739936370409,1.23557503,2692.8,2692.5,0.3324003]
[1739936371195,1.23557503,2692.6,2692.5,0.07193061]
[1739936371387,1.23557503,2692.6,2692.3,0.8321]
[1739936371709,1.23557503,2692.6,2692.5,0.07190671]
[1739936371913,1.23557503,2692.6,2692.4,0.07198856]
[1739936372104,1.23557503,2692.6,2692.5,0.07190671]
[1739936372483,1.23557503,2692.6,2692.3,0.8321]
[1739936372814,1.23557503,2692.6,2692.5,0.26027054]
[1739936373209,1.23557503,2692.6,2692.5,0.33217725]
[1739936373918,1.23557503,2692.8,2692.5,0.33217725]
[1739936374916,5.38,2693.0,2692.6,0.7684]
[1739936375215,1.23557503,2693.0,2692.7,0.07166536]
[1739936375788,0.02802331,2692.9,2692.7,0.07166536]
[1739936376203,1.23557503,2693.0,2692.7,0.07166536]
[1739936376409,1.98877503,2693.2,2692.7,0.07166536]
[1739936376607,0.7532,2693.2,2692.7,0.07166536]
[1739936377512,0.7532,2693.2,2692.8,0.26027054]
[1739936377811,0.7532,2693.2,2692.9,0.07150171]
[1739936378514,0.02802331,2693.1,2692.9,0.07150171]
[1739936378914,0.02802331,2693.1,2692.6,0.7684]
[1739936379305,0.02802331,2693.1,2692.7,0.07166536]
[1739936379510,0.7532,2693.2,2692.7,0.07166536]
[1739936380295,0.02802331,2693.1,2692.7,0.07166536]
[1739936381727,0.02802331,2693.1,2692.8,0.26032961]
[1739936382017,0.7532,2693.2,2692.9,0.07150171]
[1739936382196,1.12852,2693.2,2692.9,0.07150171]
[1739936382915,1.12852,2693.2,2692.6,0.7684]
[1739936383115,0.7532,2693.2,2693.0,0.07141989]
[1739936383318,3.8181,2693.4,2692.6,0.7684]
[1739936383517,3.8181,2693.4,2693.1,0.07133808]
[1739936383817,3.8181,2693.4,2693.2,0.07125627]
[1739936384013,3.8181,2693.4,2692.6,0.7684]
[1739936384220,3.8181,2693.4,2693.3,0.07117447]
[1739936384420,5.01284758,2693.4,2692.6,0.7684]
[1739936384724,3.8181,2693.4,2693.3,0.07100722]
[1739936385026,3.8181,2693.4,2693.0,0.8171]
[1739936385222,3.8181,2693.4,2693.3,0.07100722]
[1739936385398,3.8181,2693.4,2693.0,0.8171]
[1739936385599,3.8181,2693.4,2693.3,0.07100722]
[1739936385801,3.8181,2693.4,2693.1,0.26025949]
[1739936386001,3.8181,2693.4,2693.3,0.07100722]
[1739936386323,3.8181,2693.4,2693.1,0.26025949]
[1739936386691,3.8181,2693.4,2693.2,0.07108902]
[1739936387029,0.02802331,2693.3,2693.1,0.26025949]
[1739936387391,0.02802331,2693.3,2693.0,0.8171]
[1739936387587,0.02802331,2693.3,2692.5,0.73756329]
[1739936387793,0.02802331,2693.3,2692.6,0.8171]
[1739936388829,3.8181,2693.4,2692.6,0.8171]
[1739936389030,3.8181,2693.4,2692.7,0.25952847]
[1739936390107,0.02802331,2693.3,2692.7,0.25952847]
[1739936390498,0.02802331,2693.3,2692.8,0.25952847]
[1739936390928,3.8181,2693.4,2692.9,0.7665]
[1739936391818,3.8181,2693.4,2693.0,0.25952847]
[1739936393354,3.8181,2693.4,2692.9,0.7665]
[1739936395151,3.8181,2693.4,2692.5,4.45156329]
[1739936395354,3.8181,2693.4,2692.6,0.7665]
[1739936395355,0.02802331,2693.3,2692.6,0.7665]
[1739936396143,0.02802331,2693.3,2692.7,0.25950452]
[1739936396652,1.23553382,2693.2,2692.7,0.25950452]
[1739936396816,0.7655,2693.0,2692.7,0.25950452]
[1739936397017,0.02802331,2692.9,2692.7,0.25950452]
[1739936398347,0.02802331,2692.9,2692.5,0.73756329]
[1739936398348,0.02802331,2692.9,2692.8,0.25950452]
[1739936398550,2.00103382,2693.0,2692.8,0.25950452]
[1739936398856,0.02802331,2692.9,2692.8,0.25950452]
[1739936399160,0.02802331,2692.9,2692.5,0.73756329]
[1739936399539,2.00103382,2693.0,2692.5,0.73756329]
[1739936400564,0.7655,2693.0,2692.6,0.25964728]
[1739936400745,1.23553382,2693.2,2692.6,0.25964728]
[1739936400746,2.02213382,2693.2,2692.6,0.25964728]
[1739936400922,0.02802331,2693.1,2692.7,0.7892]
[1739936401326,0.02802331,2693.1,2692.6,0.25964728]
[1739936401860,1.23553382,2693.0,2692.7,0.25964728]
[1739936402062,0.02802331,2692.9,2692.7,0.25964728]
[1739936403269,0.02802331,2692.9,2692.8,0.25964728]
[1739936404774,0.02802331,2692.9,2692.8,0.33067536]
[1739936406446,0.02802331,2693.1,2692.8,0.33067536]
[1739936407867,0.02802331,2693.1,2692.9,0.25964728]
[1739936408075,0.7866,2693.2,2692.9,0.33065921]
[1739936408261,5.45712654,2693.4,2692.9,1.08355921]
[1739936409356,5.45712654,2693.4,2693.0,0.25964728]
[1739936409558,5.45712654,2693.4,2693.1,0.07088413]
[1739936411070,5.45712654,2693.4,2692.9,0.7529]
[1739936411271,5.45712654,2693.4,2693.2,0.07080232]
[1739936411565,1.11173596,2693.3,2692.9,0.7529]
[1739936412072,1.23553382,2693.2,2692.9,0.7529]
[1739936414047,1.23553382,2693.2,2693.0,0.07096594]
[1739936414243,1.08371265,2693.3,2693.0,0.33055599]
[1739936414467,4.23553382,2693.4,2693.0,0.33055599]
[1739936415338,4.23553382,2693.4,2693.1,0.25959005]
[1739936415782,4.23553382,2693.4,2693.2,0.07080232]
[1739936417373,4.23553382,2693.4,2693.3,0.25959005]
[1739936419669,3.0,2693.4,2693.3,0.33027474]
[1739936420042,0.55,2694.2,2693.3,0.33027474]
[1739936420043,0.7865,2693.8,2693.3,0.33027474]
[1739936420248,5.38,2694.3,2693.9,0.829]
[1739936420456,0.7865,2694.6,2693.9,0.829]
[1739936420669,1.26355713,2694.5,2694.0,0.06993313]
[1739936421248,1.23553382,2694.5,2694.0,0.06993313]
[1739936421452,1.23553382,2694.7,2694.0,0.06993313]
[1739936421756,6.61553382,2694.9,2694.1,0.7606]
[1739936421953,3.0,2694.8,2694.1,1.43472761]
[1739936422152,3.0,2694.8,2694.2,0.06929804]
[1739936422348,6.61553382,2694.9,2694.2,0.06929804]
[1739936422684,6.2006,2695.4,2694.3,1.03875635]
[1739936422900,3.0,2695.3,2694.3,1.03875635]
[1739936423185,0.92006,2695.2,2694.4,0.06913457]
[1739936423403,0.02802331,2695.1,2694.4,0.06913457]
[1739936423569,0.02802331,2695.1,2694.4,0.32872462]
[1739936423769,0.02802331,2695.1,2694.4,0.60688097]
[1739936424958,0.02802331,2695.1,2694.5,0.25959005]
[1739936425280,2.46729999,2694.9,2694.6,0.06897112]
[1739936426054,0.02802331,2694.8,2694.6,0.06897112]
[1739936426254,0.02802331,2694.8,2694.5,0.25959005]
[1739936426507,0.02802331,2694.8,2694.7,0.06888941]
[1739936426716,0.02802331,2694.8,2694.6,0.06897112]
[1739936426874,1.19715564,2694.8,2694.5,0.25959005]
[1739936427197,1.19715564,2694.8,2694.7,0.06888941]
[1739936427402,1.19715564,2694.8,2694.6,0.06897112]
[1739936427761,1.19715564,2694.8,2694.3,0.7606]
[1739936427961,5.46729999,2694.9,2694.3,0.7606]
[1739936428162,5.46729999,2694.9,2694.4,0.06913457]
[1739936428365,0.02802331,2694.8,2694.4,0.06913457]
[1739936428910,5.46729999,2694.6,2694.4,0.06913457]
[1739936429114,0.02802331,2694.5,2694.0,1.0785]
[1739936429314,0.02802331,2694.5,2694.0,0.8085]
[1739936429609,0.02802331,2694.5,2694.1,0.06886076]
[1739936429817,5.4953233,2694.6,2694.1,0.06886076]
[1739936430416,5.46729999,2694.6,2694.1,0.06886076]
[1739936430612,3.0,2694.6,2694.1,0.06886076]
[1739936431783,3.02802331,2694.6,2694.1,0.06886076]
[1739936432418,3.43680951,2694.6,2694.1,0.10179829]
[1739936434308,3.4087862,2694.6,2694.1,0.10179829]
[1739936434526,3.0,2694.6,2694.1,0.10179829]
[1739936434983,0.7847,2694.7,2694.1,0.10179829]
[1739936434984,3.0,2694.7,2694.1,0.10179829]
[1739936435187,5.38,2695.0,2694.2,0.8268]
[1739936435382,0.02802331,2695.1,2694.2,0.8268]
[1739936435611,0.02802331,2695.3,2694.4,4.5382]
[1739936435806,6.1423,2695.4,2694.4,4.5382]
[1739936436211,3.0,2695.3,2694.5,0.1015553]
[1739936436428,3.0,2695.3,2694.6,0.8268]
[1739936436718,6.1423,2695.4,2694.7,0.10138935]
[1739936436920,3.0,2695.3,2694.8,0.75173978]
[1739936437090,2.46729999,2695.5,2694.8,0.75173978]
[1739936437091,5.46729999,2695.5,2694.8,0.75173978]
[1739936437499,3.0,2695.5,2694.9,0.92802343]
[1739936437706,2.46729999,2695.6,2695.0,0.03710285]
[1739936437888,2.46729999,2695.6,2694.9,4.63868343]
[1739936438089,2.46729999,2695.6,2695.0,0.03710072]
[1739936438295,2.46729999,2695.6,2694.9,4.63868343]
[1739936438296,2.46729999,2695.6,2695.1,0.10078917]
[1739936438632,2.46729999,2695.6,2694.9,0.8268]
[1739936438828,0.95102404,2696.0,2694.9,0.8268]
[1739936439027,2.46729999,2695.7,2695.0,0.10087211]
[1739936439524,2.46729999,2695.7,2695.0,0.35820193]
[1739936440023,2.46729999,2695.9,2695.1,0.8191]
[1739936440387,2.46729999,2695.9,2695.2,0.10070623]
[1739936440926,2.4953233,2695.9,2695.2,0.10070623]
[1739936441530,2.46729999,2695.9,2695.2,0.35803605]
[1739936442098,5.46729999,2696.1,2695.4,0.7857]
[1739936442296,5.46729999,2696.1,2695.5,0.10045746]
[1739936442297,2.46729999,2696.1,2695.5,0.10045746]
[1739936442988,2.46729999,2696.4,2695.7,0.7857]
[1739936443393,2.46729999,2696.4,2695.8,0.09927863]
[1739936443394,5.4953233,2696.4,2695.8,0.09927863]
[1739936444631,5.4953233,2696.4,2695.8,0.84094528]
[1739936445430,5.46729999,2696.4,2695.8,0.84094528]
[1739936446130,5.4953233,2696.4,2695.8,0.84094528]
[1739936446631,5.46729999,2696.4,2695.8,0.84094528]
[1739936446924,2.46729999,2696.4,2695.8,0.84094528]
[1739936448496,2.46729999,2696.4,2695.9,0.7666]
[1739936448693,2.46729999,2696.4,2696.0,0.09886257]
[1739936449117,3.149604,2696.6,2696.0,0.09886257]
[1739936451334,3.149604,2696.6,2696.0,0.35624513]
[1739936451899,2.46729999,2696.4,2696.0,0.35624513]
[1739936452117,0.02802331,2696.3,2696.0,0.35624513]
[1739936452315,2.46729999,2696.4,2696.0,0.35624513]
[1739936452517,2.46729999,2696.4,2696.0,0.09886257]
[1739936452912,0.02802331,2696.3,2696.0,0.09886257]
[1739936453525,5.46729999,2696.4,2696.0,0.09886257]
[1739936453705,5.4953233,2696.4,2696.0,0.09886257]
[1739936454117,5.46729999,2696.4,2696.0,0.09886257]
[1739936454520,2.46729999,2696.4,2696.0,0.09886257]
[1739936456546,2.46729999,2696.4,2696.1,0.7644]
[1739936456944,2.46729999,2696.4,2696.2,0.09836311]
[1739936465459,2.46729999,2696.4,2696.3,0.25836206]
[1739936466933,2.46729999,2696.4,2696.3,0.67215834]
[1739936467336,0.149604,2696.6,2696.3,0.67215834]
[1739936467548,0.149604,2696.6,2696.4,0.09804245]
[1739936468331,0.149604,2696.6,2696.5,0.25836206]
[1739936472736,0.149604,2696.6,2696.5,1.04566206]
[1739936473448,0.149604,2696.6,2696.5,1.55848212]
[1739936476141,0.149604,2696.6,2696.5,5.26699212]
[1739936476544,0.149604,2696.6,2696.5,1.55848212]
[1739936477445,0.02802331,2697.6,2696.6,0.7552]
[1739936477878,0.02802331,2697.6,2696.5,0.77118212]
[1739936477879,0.02802331,2697.6,2696.8,0.7552]
[1739936478177,0.8211,2697.7,2696.9,0.09733634]
[1739936478388,0.84912331,2697.7,2696.9,0.09733634]
[1739936479359,0.84912331,2697.7,2697.0,0.25836206]
[1739936479560,0.84912331,2697.7,2697.1,0.09717069]
[1739936480284,0.02802331,2697.7,2697.2,0.8023]
[1739936480481,0.8103,2697.9,2697.2,0.8023]
[1739936480482,0.8103,2697.9,2697.2,1.06066206]
[1739936480686,0.02802331,2697.8,2697.2,1.06066206]
[1739936480881,0.02802331,2697.8,2697.3,0.09700506]
[1739936481185,0.02802331,2697.8,2697.2,1.06066206]
[1739936481390,0.02802331,2697.8,2697.4,0.09654116]
[1739936481554,0.02802331,2697.8,2697.3,0.09662396]
[1739936481754,0.02802331,2697.8,2697.2,1.06066206]
[1739936481972,0.02802331,2697.8,2697.3,0.09662396]
[1739936482286,0.02802331,2697.8,2697.2,1.06066206]
[1739936482483,0.02802331,2697.8,2697.3,0.09662396]
[1739936482786,0.02802331,2697.8,2697.2,0.8023]
[1739936482987,0.99972163,2697.9,2697.4,0.09650544]
[1739936483174,0.99972163,2697.9,2697.3,0.09658824]
[1739936483374,0.99972163,2697.9,2697.5,0.09642264]
[1739936483575,0.99972163,2697.9,2697.4,0.09650544]
[1739936483777,0.99972163,2697.9,2697.6,0.09633985]
[1739936483965,0.8103,2697.9,2697.5,0.09642264]
[1739936484155,0.8103,2697.9,2697.2,0.8023]
[1739936484357,0.02802331,2697.8,2697.3,0.09658824]
[1739936484557,0.02802331,2697.8,2697.2,0.8023]
[1739936484790,0.02802331,2697.8,2697.3,0.09658824]
[1739936485231,0.02802331,2697.8,2697.2,0.8023]
[1739936485387,0.02802331,2697.8,2697.4,0.09650544]
[1739936485570,0.02802331,2697.8,2697.2,0.8023]
[1739936485571,0.02802331,2697.8,2697.3,0.09658824]
[1739936485769,0.02802331,2697.8,2697.5,0.09642264]
[1739936485969,0.02802331,2697.8,2697.4,0.09650544]
[1739936486277,0.02802331,2697.8,2697.5,0.09642264]
[1739936486457,0.02802331,2697.8,2697.2,0.8023]
[1739936486654,0.7685,2697.9,2697.3,0.09658824]
[1739936486883,0.02802331,2697.8,2697.3,0.09658824]
[1739936487189,0.7685,2697.9,2697.2,0.8023]
[1739936487490,0.7685,2697.9,2697.3,0.09658824]
[1739936489899,0.02802331,2697.8,2697.3,0.09658824]
[1739936490288,0.02802331,2697.8,2697.2,0.8023]
[1739936490592,0.02802331,2697.8,2697.3,0.09597495]
[1739936490981,0.02802331,2697.8,2697.2,0.8023]
[1739936491297,0.02802331,2697.8,2697.3,0.09597495]
[1739936491462,0.02802331,2697.8,2697.2,0.8023]
[1739936491662,0.02802331,2697.8,2697.3,0.09597495]
[1739936491863,0.02802331,2697.8,2697.2,0.8023]
[1739936492063,0.02802331,2697.8,2697.3,0.09597495]
[1739936492303,0.02802331,2697.8,2697.2,0.8023]
[1739936492498,0.02802331,2697.8,2697.3,0.09597495]
[1739936492678,0.7904,2697.7,2696.9,0.7783]
[1739936492871,0.55,2697.9,2697.0,0.09266649]
[1739936492872,0.7904,2697.5,2697.0,0.09266649]
[1739936493079,0.02802331,2697.4,2696.7,1.19316047]
[1739936493302,0.02802331,2697.4,2696.8,0.09283215]
[1739936494100,0.7904,2697.3,2696.8,0.09283215]
[1739936494273,0.7904,2697.3,2696.8,0.25780258]
[1739936494475,0.7755,2697.1,2696.9,0.09284435]
[1739936494680,0.02802331,2697.2,2696.9,0.09284435]
[1739936494681,0.80352331,2697.0,2696.9,0.09284435]
[1739936494894,0.7755,2697.0,2696.8,0.25780258]
[1739936495579,0.02802331,2696.9,2696.8,0.25780258]
[1739936495922,0.80352331,2696.9,2696.8,0.09304005]
[1739936496119,1.3255,2696.8,2695.9,1.14641998]
[1739936496269,0.7755,2696.6,2695.9,0.41486047]
[1739936496473,0.02802331,2696.5,2696.0,0.09370294]
[1739936496672,0.7755,2696.4,2696.0,0.09370294]
[1739936496925,0.02802331,2696.3,2695.9,0.41486047]
[1739936497136,0.7755,2696.4,2696.0,0.09370294]
[1739936497438,0.7755,2696.4,2695.7,0.75788048]
[1739936497439,0.02802331,2696.3,2695.7,0.75788048]
[1739936497768,0.7755,2696.4,2695.8,0.09386873]
[1739936498038,0.7755,2696.4,2695.6,0.7829]
[1739936498228,0.7755,2696.4,2695.9,0.09378583]
[1739936498434,0.7755,2696.4,2695.6,1.54434943]
[1739936498930,0.7755,2696.4,2695.7,0.09395163]
[1739936499925,0.02802331,2696.3,2695.7,0.09395163]
[1739936500984,0.7586,2696.2,2695.7,0.09395163]
[1739936501177,0.02802331,2696.1,2695.7,0.09395163]
[1739936501383,0.02802331,2696.1,2695.4,1.56038871]
[1739936501583,0.02802331,2696.1,2695.8,0.09386873]
[1739936501799,0.02802331,2696.1,2695.4,1.56038871]
[1739936502131,0.02802331,2696.1,2695.5,0.02135119]
[1739936502328,0.02802331,2696.1,2695.6,0.09403453]
[1739936502622,0.7586,2696.2,2695.6,0.09403453]
[1739936503038,0.7586,2696.2,2695.2,0.8115]
[1739936503221,0.7586,2696.2,2695.3,0.02135119]
[1739936503424,0.7586,2696.2,2695.3,0.11563448]
[1739936503646,0.7586,2696.2,2695.3,0.84882975]
[1739936504244,0.7586,2696.2,2695.3,0.75454646]
[1739936504608,0.7586,2696.2,2695.3,0.02135119]
[1739936505009,0.7586,2696.2,2695.4,0.09508583]
[1739936505242,0.7586,2696.2,2695.5,0.02135119]
[1739936505395,0.7586,2696.2,2695.6,0.7655]
[1739936505595,0.7586,2696.2,2695.6,0.86042]
[1739936506419,1.03776954,2696.2,2695.6,0.86042]
[1739936506624,0.02802331,2696.1,2695.6,0.86042]
[1739936506829,1.03776954,2696.2,2695.6,0.86042]
[1739936508944,0.7586,2696.2,2695.6,0.86042]
[1739936509110,3.3923095,2697.0,2695.6,0.86042]
[1739936509111,0.7765,2696.4,2695.6,0.86042]
[1739936509936,0.02802331,2696.3,2695.6,0.86042]
[1739936510521,0.8304,2696.2,2695.6,0.09492]
[1739936510842,0.02802331,2696.1,2695.4,0.8154]
[1739936511036,0.02802331,2696.1,2695.7,0.09483709]
[1739936511346,0.8304,2696.2,2695.8,0.09475419]
[1739936511848,0.8304,2696.2,2695.4,0.85249603]
[1739936512031,0.8304,2696.2,2695.9,0.0946713]
[1739936512236,0.8304,2696.2,2695.5,0.25697403]
[1739936512432,0.8304,2696.2,2696.0,0.09458841]
[1739936512744,0.8304,2696.2,2696.1,0.09450552]
[1739936512924,0.8304,2696.2,2695.5,0.25697403]
[1739936513125,0.8304,2696.2,2695.6,0.09492]
[1739936514951,0.02802331,2696.1,2695.6,0.09492]
[1739936515427,0.8304,2696.2,2695.6,0.09492]
[1739936515845,0.02802331,2696.1,2695.6,0.09492]
[1739936516052,0.8304,2696.2,2695.6,0.09492]
[1739936516827,0.02802331,2696.1,2695.6,0.09492]
[1739936517028,0.7907,2696.0,2695.6,0.09492]
[1739936517730,0.02802331,2695.9,2695.6,0.09492]
[1739936518128,0.7907,2696.0,2695.6,0.09492]
[1739936518337,0.7907,2696.0,2695.2,0.25697403]
[1739936518523,0.7907,2696.0,2695.3,0.09511522]
[1739936519882,0.7907,2696.0,2695.3,0.35208925]
[1739936521074,0.02802331,2695.9,2695.3,0.35208925]
[1739936521222,0.8188,2695.8,2695.4,0.25697403]
[1739936521422,0.02802331,2695.7,2695.4,0.25697403]
[1739936521623,0.02802331,2695.7,2695.5,0.09494938]
[1739936522691,0.8188,2695.8,2695.5,0.09494938]
[1739936522971,0.8188,2695.8,2695.5,0.35192341]
[1739936524575,0.8188,2695.8,2695.6,0.25697403]
[1739936524771,0.811,2696.0,2695.7,0.09558598]
[1739936524978,0.811,2696.0,2695.6,0.25697403]
[1739936525779,0.811,2696.0,2695.7,0.25697403]
[1739936526176,0.02802331,2696.4,2695.7,0.25697403]
[1739936526472,0.8008,2696.3,2695.7,0.25697403]
[1739936526843,0.8008,2696.3,2695.8,0.09561011]
[1739936527563,0.7686,2696.5,2695.9,0.7756]
[1739936527876,0.7686,2696.5,2696.0,0.09539676]
[1739936529046,0.7686,2696.5,2696.1,0.25697403]
[1739936529374,0.7686,2696.5,2696.2,0.09517748]
[1739936530385,0.7553,2696.7,2696.3,0.25697403]
[1739936530569,0.02802331,2696.6,2696.4,0.09492851]
[1739936530769,0.7553,2696.7,2696.4,0.09492851]
[1739936530970,0.02802331,2696.6,2696.4,0.09492851]
[1739936532269,0.02802331,2696.6,2695.9,1.5327717]
[1739936532470,0.02802331,2696.6,2696.5,0.09479809]
[1739936532671,0.7553,2696.7,2695.9,1.5327717]
[1739936532867,0.7553,2696.7,2696.5,0.09479809]
[1739936533080,0.7553,2696.7,2695.9,1.5327717]
[1739936533281,0.7553,2696.7,2696.6,0.09471524]
[1739936533487,0.7553,2696.7,2696.0,0.25857527]
[1739936533667,0.7553,2696.7,2696.6,0.09471524]
[1739936533870,0.7553,2696.7,2696.1,0.7996]
[1739936534177,0.7667,2697.1,2696.1,0.7996]
[1739936534364,0.64269331,2697.0,2696.2,0.0950348]